[Event "2026 European Womens Championship"]
[Site "Batumi, GE"]
[Date "2026.06.02"]
[Round "8"]
[White "Kazarian, Anna-Maja"]
[Black "Khotenashvili, Bella"]
[Result "1/2-1/2"]
[Board "7"]
[TimeControl "5400+30"]
[WhiteFideId "1033689"]
[BlackFideId "13602640"]
[WhiteElo "2317"]
[BlackElo "2415"]
[WhiteTitle "FM"]
[BlackTitle "GM"]
[WhiteClock "0:01:10"]
[BlackClock "0:01:45"]
[Variant "Standard"]

1. e4 {[%clk 1:30:57]}  e5 {[%clk 1:30:16]} 2. Nf3 {[%clk 1:31:16]}  Nc6 {[%clk 1:30:39]} 3. Nc3 {[%clk 1:31:30]}  Nf6 {[%clk 1:30:26]}
4. d4 {[%clk 1:31:44]}  exd4 {[%clk 1:30:37]} 5. Nxd4 {[%clk 1:32:10]}  Bb4 {[%clk 1:30:55]} 6. Nxc6 {[%clk 1:32:05]}  bxc6 {[%clk 1:31:15]}
7. Bd3 {[%clk 1:32:19]}  O-O {[%clk 1:30:09]} 8. O-O {[%clk 1:31:56]}  Re8 {[%clk 1:30:01]} 9. Re1 {[%clk 1:25:20]}  d6 {[%clk 1:29:42]}
10. Bg5 {[%clk 1:22:41]}  Rb8 {[%clk 1:28:13]} 11. Qd2 {[%clk 1:15:50]}  Qe7 {[%clk 0:58:45]} 12. a3 {[%clk 1:02:37]}  Bxc3 {[%clk 0:57:13]}
13. Qxc3 {[%clk 1:02:59]}  Bd7 {[%clk 0:52:39]} 14. f4 {[%clk 0:55:07]}  h6 {[%clk 0:48:03]} 15. Bh4 {[%clk 0:54:25]}  Nd5 {[%clk 0:28:58]}
16. exd5 {[%clk 0:43:51]}  Qxh4 {[%clk 0:29:20]} 17. dxc6 {[%clk 0:43:29]}  Rxe1+ {[%clk 0:28:13]} 18. Rxe1 {[%clk 0:40:15]}  Be6 {[%clk 0:28:01]}
19. g3 {[%clk 0:35:51]}  Qh5 {[%clk 0:26:01]} 20. Qd4 {[%clk 0:34:26]}  Qa5 {[%clk 0:11:12]} 21. b4 {[%clk 0:30:12]}  Qxa3 {[%clk 0:11:19]}
22. f5 {[%clk 0:28:40]}  Ba2 {[%clk 0:11:27]} 23. b5 {[%clk 0:10:09]}  Qa5 {[%clk 0:08:28]} 24. Re7 {[%clk 0:07:34]}  Kf8 {[%clk 0:06:45]}
25. f6 {[%clk 0:05:24]}  Be6 {[%clk 0:06:38]} 26. Qf4 {[%clk 0:01:46]}  Qe1+ {[%clk 0:04:44]} 27. Bf1 {[%clk 0:02:14]}  Rc8 {[%clk 0:04:47]}
28. Rxc7 {[%clk 0:02:21]}  Rxc7 {[%clk 0:04:31]} 29. Qxd6+ {[%clk 0:02:45]}  Kg8 {[%clk 0:04:41]} 30. Qxc7 {[%clk 0:02:11]}  Qe3+ {[%clk 0:03:58]}
31. Kg2 {[%clk 0:02:37]}  Bd5+ {[%clk 0:03:18]} 32. Kh3 {[%clk 0:03:03]}  Be6+ {[%clk 0:02:22]} 33. Kg2 {[%clk 0:03:29]}  Bd5+ {[%clk 0:02:45]}
34. Kh3 {[%clk 0:03:52]}  Be6+ {[%clk 0:01:45]} 35. Kg2 {[%clk 0:01:10]} 1/2-1/2

[Event "2026 European Womens Championship"]
[Site "Batumi, GE"]
[Date "2026.06.02"]
[Round "8"]
[White "Salimova, Nurgyul"]
[Black "Milliet, Sophie"]
[Result "1-0"]
[Board "8"]
[TimeControl "5400+30"]
[WhiteFideId "2915138"]
[BlackFideId "623725"]
[WhiteElo "2404"]
[BlackElo "2361"]
[WhiteTitle "IM"]
[BlackTitle "IM"]
[WhiteClock "0:02:32"]
[BlackClock "0:01:04"]
[Variant "Standard"]

1. d4 {[%clk 1:30:47]}  Nf6 {[%clk 1:30:54]} 2. c4 {[%clk 1:30:57]}  e6 {[%clk 1:31:19]} 3. g3 {[%clk 1:31:13]}  d5 {[%clk 1:31:11]}
4. Bg2 {[%clk 1:31:15]}  Be7 {[%clk 1:31:33]} 5. Nc3 {[%clk 1:21:41]}  O-O {[%clk 1:28:54]} 6. Nf3 {[%clk 1:21:16]}  c6 {[%clk 1:23:44]}
7. Qd3 {[%clk 1:15:39]}  b6 {[%clk 1:15:24]} 8. O-O {[%clk 1:12:12]}  a5 {[%clk 1:14:14]} 9. b3 {[%clk 1:11:38]}  Ba6 {[%clk 1:13:58]}
10. Rd1 {[%clk 1:09:37]}  b5 {[%clk 1:10:11]} 11. Qc2 {[%clk 0:58:27]}  Nbd7 {[%clk 1:02:42]} 12. c5 {[%clk 0:40:47]}  b4 {[%clk 1:02:49]}
13. Na4 {[%clk 0:41:03]}  Bb5 {[%clk 0:57:13]} 14. a3 {[%clk 0:37:44]}  Ne4 {[%clk 0:56:18]} 15. Ne1 {[%clk 0:36:20]}  f5 {[%clk 0:50:33]}
16. f3 {[%clk 0:34:33]}  Ng5 {[%clk 0:42:41]} 17. Nd3 {[%clk 0:31:08]}  Bf6 {[%clk 0:39:36]} 18. Bb2 {[%clk 0:28:07]}  Qb8 {[%clk 0:25:31]}
19. Qd2 {[%clk 0:24:53]}  Ra7 {[%clk 0:19:57]} 20. Nf2 {[%clk 0:20:49]}  Be7 {[%clk 0:11:06]} 21. Nd3 {[%clk 0:14:03]}  e5 {[%clk 0:09:11]}
22. dxe5 {[%clk 0:10:27]}  Ne6 {[%clk 0:09:37]} 23. axb4 {[%clk 0:07:11]}  axb4 {[%clk 0:10:03]} 24. Qc2 {[%clk 0:05:08]}  Bxa4 {[%clk 0:09:02]}
25. bxa4 {[%clk 0:05:32]}  Ndxc5 {[%clk 0:09:22]} 26. Nxc5 {[%clk 0:05:30]}  Bxc5+ {[%clk 0:09:50]} 27. Kh1 {[%clk 0:05:44]}  Qb6 {[%clk 0:07:20]}
28. e4 {[%clk 0:04:50]}  fxe4 {[%clk 0:07:19]} 29. fxe4 {[%clk 0:05:15]}  Rf2 {[%clk 0:04:49]} 30. Qb3 {[%clk 0:05:25]}  Nd4 {[%clk 0:01:46]}
31. Bxd4 {[%clk 0:05:06]}  Bxd4 {[%clk 0:02:15]} 32. a5 {[%clk 0:04:40]}  Qc5 {[%clk 0:01:50]} 33. Rac1 {[%clk 0:04:53]}  Bc3 {[%clk 0:01:07]}
34. exd5 {[%clk 0:05:16]}  Raf7 {[%clk 0:01:05]} 35. dxc6 {[%clk 0:05:34]}  g6 {[%clk 0:00:41]} 36. e6 {[%clk 0:04:09]}  Re7 {[%clk 0:00:45]}
37. a6 {[%clk 0:03:19]}  Re2 {[%clk 0:00:50]} 38. Qd5 {[%clk 0:03:06]}  Qa7 {[%clk 0:00:34]} 39. Qd8+ {[%clk 0:03:04]}  Kg7 {[%clk 0:01:04]}
40. Rd7 {[%clk 0:02:32]} 1-0

[Event "2026 European Womens Championship"]
[Site "Batumi, GE"]
[Date "2026.06.02"]
[Round "8"]
[White "Kobak, Polina"]
[Black "Kiolbasa, Oliwia"]
[Result "0-1"]
[Board "9"]
[TimeControl "5400+30"]
[WhiteFideId "24269727"]
[BlackFideId "1154613"]
[WhiteElo "1986"]
[BlackElo "2397"]
[WhiteTitle "WFM"]
[BlackTitle "IM"]
[WhiteClock "0:00:32"]
[BlackClock "0:01:18"]
[Variant "Standard"]

1. d4 {[%clk 1:30:57]}  Nf6 {[%clk 1:26:54]} 2. c4 {[%clk 1:31:21]}  e6 {[%clk 1:27:19]} 3. Nf3 {[%clk 1:31:45]}  d5 {[%clk 1:27:43]}
4. Nc3 {[%clk 1:32:09]}  Bb4 {[%clk 1:28:04]} 5. Qa4+ {[%clk 1:32:15]}  Nc6 {[%clk 1:28:27]} 6. e3 {[%clk 1:32:31]}  O-O {[%clk 1:28:38]}
7. Bd2 {[%clk 1:31:14]}  Qe8 {[%clk 1:28:41]} 8. Qc2 {[%clk 1:14:31]}  dxc4 {[%clk 1:28:53]} 9. Bxc4 {[%clk 1:13:56]}  e5 {[%clk 1:29:03]}
10. dxe5 {[%clk 1:05:52]}  Nxe5 {[%clk 1:29:16]} 11. Be2 {[%clk 1:04:37]}  Nxf3+ {[%clk 1:18:32]} 12. Bxf3 {[%clk 1:02:01]}  Qe5 {[%clk 1:18:49]}
13. O-O-O {[%clk 0:56:36]}  Bf5 {[%clk 1:09:57]} 14. e4 {[%clk 0:51:08]}  Bg6 {[%clk 1:06:15]} 15. g3 {[%clk 0:47:23]}  Rfe8 {[%clk 1:02:36]}
16. Rhe1 {[%clk 0:43:22]}  a5 {[%clk 0:48:22]} 17. a3 {[%clk 0:34:21]}  Ra6 {[%clk 0:39:57]} 18. Be2 {[%clk 0:25:10]}  Rc6 {[%clk 0:39:12]}
19. f3 {[%clk 0:19:02]}  Rb8 {[%clk 0:26:48]} 20. Qb3 {[%clk 0:15:06]}  Nxe4 {[%clk 0:13:43]} 21. axb4 {[%clk 0:06:21]}  a4 {[%clk 0:03:43]}
22. Qa3 {[%clk 0:05:18]}  Nf2 {[%clk 0:03:34]} 23. g4 {[%clk 0:03:00]}  Qd4 {[%clk 0:03:12]} 24. Bg5 {[%clk 0:02:40]}  Nxd1 {[%clk 0:03:24]}
25. Rxd1 {[%clk 0:02:06]}  Qe5 {[%clk 0:03:33]} 26. Bd3 {[%clk 0:01:02]}  Qxg5+ {[%clk 0:03:08]} 27. Kb1 {[%clk 0:01:26]}  Bxd3+ {[%clk 0:02:08]}
28. Rxd3 {[%clk 0:01:55]}  b5 {[%clk 0:02:13]} 29. Qa2 {[%clk 0:00:50]}  Rc4 {[%clk 0:01:57]} 30. Kc2 {[%clk 0:00:32]}  Qg6 {[%clk 0:01:18]} 0-1

[Event "2026 European Womens Championship"]
[Site "Batumi, GE"]
[Date "2026.06.02"]
[Round "8"]
[White "Kulon, Klaudia"]
[Black "Rakhmangulova, Anastasiya"]
[Result "1-0"]
[Board "10"]
[TimeControl "5400+30"]
[WhiteFideId "1131044"]
[BlackFideId "14117479"]
[WhiteElo "2377"]
[BlackElo "2328"]
[WhiteTitle "IM"]
[BlackTitle "WGM"]
[WhiteClock "0:13:23"]
[BlackClock "0:02:33"]
[Variant "Standard"]

1. d4 {[%clk 1:27:30]}  Nf6 {[%clk 1:30:54]} 2. c4 {[%clk 1:27:50]}  g6 {[%clk 1:31:19]} 3. Nc3 {[%clk 1:28:10]}  Bg7 {[%clk 1:31:43]}
4. e4 {[%clk 1:28:35]}  d6 {[%clk 1:32:10]} 5. Be2 {[%clk 1:28:55]}  O-O {[%clk 1:32:32]} 6. h4 {[%clk 1:29:19]}  c5 {[%clk 1:30:33]}
7. d5 {[%clk 1:29:07]}  b5 {[%clk 1:30:55]} 8. cxb5 {[%clk 1:29:11]}  a6 {[%clk 1:30:27]} 9. a4 {[%clk 1:28:55]}  axb5 {[%clk 1:30:16]}
10. Bxb5 {[%clk 1:29:11]}  e6 {[%clk 1:27:27]} 11. dxe6 {[%clk 1:24:22]}  Bxe6 {[%clk 1:27:19]} 12. Nf3 {[%clk 1:24:07]}  d5 {[%clk 1:24:34]}
13. e5 {[%clk 1:09:16]}  Ng4 {[%clk 1:16:39]} 14. Bg5 {[%clk 1:03:37]}  f6 {[%clk 0:55:39]} 15. exf6 {[%clk 1:02:18]}  Bxf6 {[%clk 0:56:04]}
16. O-O {[%clk 0:56:53]}  Ra7 {[%clk 0:43:08]} 17. Bxf6 {[%clk 0:44:46]}  Nxf6 {[%clk 0:41:26]} 18. Ng5 {[%clk 0:43:20]}  Bg4 {[%clk 0:39:50]}
19. f3 {[%clk 0:38:35]}  Bc8 {[%clk 0:40:02]} 20. Qe2 {[%clk 0:34:42]}  Re7 {[%clk 0:39:15]} 21. Qf2 {[%clk 0:34:03]}  d4 {[%clk 0:36:29]}
22. Rad1 {[%clk 0:31:49]}  h6 {[%clk 0:36:22]} 23. Qg3 {[%clk 0:30:51]}  hxg5 {[%clk 0:35:30]} 24. hxg5 {[%clk 0:27:42]}  Nfd7 {[%clk 0:29:00]}
25. Bc4+ {[%clk 0:27:23]}  Kg7 {[%clk 0:26:20]} 26. Nd5 {[%clk 0:25:32]}  Nb6 {[%clk 0:19:53]} 27. Nxe7 {[%clk 0:24:35]}  Nxc4 {[%clk 0:20:18]}
28. Rfe1 {[%clk 0:24:04]}  Qd6 {[%clk 0:16:49]} 29. Qh4 {[%clk 0:19:03]}  Rh8 {[%clk 0:16:44]} 30. Nxc8 {[%clk 0:19:10]}  Rxc8 {[%clk 0:12:36]}
31. Qh6+ {[%clk 0:19:02]}  Kg8 {[%clk 0:12:49]} 32. Qh3 {[%clk 0:15:38]}  Qd7 {[%clk 0:11:55]} 33. Re6 {[%clk 0:10:48]}  Rc6 {[%clk 0:12:19]}
34. Rxc6 {[%clk 0:06:48]}  Qxc6 {[%clk 0:11:24]} 35. Re1 {[%clk 0:06:40]}  Ne3 {[%clk 0:11:34]} 36. Kf2 {[%clk 0:06:13]}  Nd7 {[%clk 0:10:34]}
37. Rh1 {[%clk 0:05:46]}  Nf8 {[%clk 0:10:45]} 38. Qh8+ {[%clk 0:04:10]}  Kf7 {[%clk 0:11:10]} 39. a5 {[%clk 0:01:29]}  Qe6 {[%clk 0:09:54]}
40. Qf6+ {[%clk 0:01:04]}  Qxf6 {[%clk 0:07:10]} 41. gxf6 {[%clk 0:01:32]}  Kxf6 {[%clk 0:21:52]} 42. a6 {[%clk 0:31:01]}  Nd5 {[%clk 0:21:40]}
43. a7 {[%clk 0:26:10]}  Nc7 {[%clk 0:20:55]} 44. Ke2 {[%clk 0:25:16]}  Na8 {[%clk 0:16:28]} 45. Kd3 {[%clk 0:22:41]}  Nd7 {[%clk 0:14:21]}
46. Rh8 {[%clk 0:18:39]}  Ndb6 {[%clk 0:14:06]} 47. Ke4 {[%clk 0:18:48]}  Kg5 {[%clk 0:09:20]} 48. g3 {[%clk 0:18:23]}  Kf6 {[%clk 0:09:43]}
49. f4 {[%clk 0:17:54]}  g5 {[%clk 0:05:25]} 50. f5 {[%clk 0:15:32]}  g4 {[%clk 0:05:02]} 51. Rh6+ {[%clk 0:15:35]}  Kf7 {[%clk 0:04:50]}
52. Rc6 {[%clk 0:13:21]}  Nd7 {[%clk 0:02:26]} 53. Rc8 {[%clk 0:13:27]}  Nf6+ {[%clk 0:02:09]} 54. Kd3 {[%clk 0:13:19]}  Nb6 {[%clk 0:02:33]}
55. Rxc5 {[%clk 0:13:23]} 1-0

[Event "2026 European Womens Championship"]
[Site "Batumi, GE"]
[Date "2026.06.02"]
[Round "8"]
[White "Wagner, Dinara"]
[Black "Schneider, Jana"]
[Result "1-0"]
[Board "11"]
[TimeControl "5400+30"]
[WhiteFideId "24157570"]
[BlackFideId "12924997"]
[WhiteElo "2408"]
[BlackElo "2283"]
[WhiteTitle "IM"]
[BlackTitle "WGM"]
[WhiteClock "0:03:28"]
[BlackClock "0:00:40"]
[Variant "Standard"]

1. d4 {[%clk 1:30:58]}  d5 {[%clk 1:30:49]} 2. c4 {[%clk 1:31:22]}  e6 {[%clk 1:31:14]} 3. Nf3 {[%clk 1:31:28]}  Nf6 {[%clk 1:31:35]}
4. Nc3 {[%clk 1:31:54]}  a6 {[%clk 1:31:53]} 5. cxd5 {[%clk 1:32:06]}  exd5 {[%clk 1:32:15]} 6. Bg5 {[%clk 1:32:31]}  Be6 {[%clk 1:32:19]}
7. e3 {[%clk 1:32:23]}  Nbd7 {[%clk 1:32:07]} 8. Bd3 {[%clk 1:31:44]}  Bd6 {[%clk 1:32:07]} 9. O-O {[%clk 1:31:50]}  c6 {[%clk 1:32:19]}
10. Bh4 {[%clk 1:31:42]}  h6 {[%clk 1:32:18]} 11. Kh1 {[%clk 1:28:56]}  Qc7 {[%clk 1:30:06]} 12. Rc1 {[%clk 1:27:48]}  O-O {[%clk 1:20:14]}
13. Nd2 {[%clk 1:27:06]}  g5 {[%clk 1:19:09]} 14. Bg3 {[%clk 1:27:32]}  Bxg3 {[%clk 1:18:24]} 15. fxg3 {[%clk 1:27:19]}  Kg7 {[%clk 1:05:20]}
16. Bb1 {[%clk 0:32:35]}  Rae8 {[%clk 0:52:12]} 17. Qc2 {[%clk 0:30:06]}  Rh8 {[%clk 0:52:08]} 18. Rce1 {[%clk 0:29:05]}  Bg4 {[%clk 0:42:57]}
19. e4 {[%clk 0:24:38]}  Qb6 {[%clk 0:34:18]} 20. e5 {[%clk 0:19:59]}  Ng8 {[%clk 0:34:25]} 21. Nb3 {[%clk 0:17:39]}  Bh5 {[%clk 0:31:22]}
22. Qd2 {[%clk 0:13:39]}  Qd8 {[%clk 0:22:11]} 23. Rf2 {[%clk 0:12:36]}  Ne7 {[%clk 0:16:20]} 24. Nd1 {[%clk 0:08:44]}  Bg6 {[%clk 0:09:51]}
25. Ne3 {[%clk 0:09:02]}  Bxb1 {[%clk 0:09:56]} 26. Rxb1 {[%clk 0:09:30]}  Rhf8 {[%clk 0:09:05]} 27. Rbf1 {[%clk 0:09:33]}  b6 {[%clk 0:04:49]}
28. Qe2 {[%clk 0:07:32]}  f6 {[%clk 0:02:39]} 29. e6 {[%clk 0:06:25]}  Nb8 {[%clk 0:02:53]} 30. Qh5 {[%clk 0:06:53]}  Ng8 {[%clk 0:01:04]}
31. Nf5+ {[%clk 0:07:20]}  Kh7 {[%clk 0:01:30]} 32. e7 {[%clk 0:07:48]}  Rxe7 {[%clk 0:01:17]} 33. Nxe7 {[%clk 0:08:16]}  Qxe7 {[%clk 0:01:38]}
34. Re2 {[%clk 0:08:28]}  Qf7 {[%clk 0:00:36]} 35. Qxf7+ {[%clk 0:03:13]}  Rxf7 {[%clk 0:01:04]} 36. Re8 {[%clk 0:03:05]}  Rb7 {[%clk 0:01:31]}
37. g4 {[%clk 0:02:52]}  a5 {[%clk 0:01:37]} 38. Rfe1 {[%clk 0:03:07]}  a4 {[%clk 0:00:37]} 39. Nd2 {[%clk 0:03:22]}  Kg7 {[%clk 0:00:33]}
40. Rc8 {[%clk 0:03:00]}  Na6 {[%clk 0:00:32]} 41. Rxc6 {[%clk 0:02:06]}  Nb4 {[%clk 0:30:01]} 42. Rc3 {[%clk 0:28:14]}  Nxa2 {[%clk 0:28:52]}
43. Ra3 {[%clk 0:28:39]}  Nb4 {[%clk 0:29:17]} 44. Rxa4 {[%clk 0:29:07]}  Nd3 {[%clk 0:29:27]} 45. Rea1 {[%clk 0:29:31]}  Nxb2 {[%clk 0:27:14]}
46. Ra7 {[%clk 0:28:39]}  Rxa7 {[%clk 0:25:45]} 47. Rxa7+ {[%clk 0:29:05]}  Kg6 {[%clk 0:23:14]} 48. Rb7 {[%clk 0:19:53]}  Na4 {[%clk 0:23:07]}
49. Nf3 {[%clk 0:19:35]}  h5 {[%clk 0:20:42]} 50. gxh5+ {[%clk 0:18:51]}  Kxh5 {[%clk 0:21:09]} 51. h3 {[%clk 0:15:35]}  Kg6 {[%clk 0:15:12]}
52. g4 {[%clk 0:09:02]}  Nh6 {[%clk 0:14:38]} 53. Kg2 {[%clk 0:09:06]}  Nf7 {[%clk 0:14:24]} 54. h4 {[%clk 0:08:23]}  gxh4 {[%clk 0:09:37]}
55. Nxh4+ {[%clk 0:08:52]}  Kg5 {[%clk 0:09:48]} 56. Rxf7 {[%clk 0:08:02]}  Kxh4 {[%clk 0:10:09]} 57. Kf3 {[%clk 0:08:20]}  Kg5 {[%clk 0:10:06]}
58. Rg7+ {[%clk 0:08:47]}  Kh6 {[%clk 0:10:24]} 59. Rd7 {[%clk 0:08:40]}  Nc3 {[%clk 0:07:45]} 60. Rd6 {[%clk 0:04:04]}  Kg5 {[%clk 0:08:04]}
61. Rxb6 {[%clk 0:04:31]}  Ne4 {[%clk 0:08:12]} 62. Rb5 {[%clk 0:04:23]}  Nd2+ {[%clk 0:07:45]} 63. Ke3 {[%clk 0:04:36]}  Nc4+ {[%clk 0:07:14]}
64. Kd3 {[%clk 0:04:48]}  Kf4 {[%clk 0:05:31]} 65. Rxd5 {[%clk 0:03:46]}  Ne3 {[%clk 0:05:57]} 66. Rd6 {[%clk 0:03:17]}  Nxg4 {[%clk 0:06:17]}
67. Re6 {[%clk 0:03:29]}  Nf2+ {[%clk 0:02:58]} 68. Kc4 {[%clk 0:03:47]}  f5 {[%clk 0:01:46]} 69. d5 {[%clk 0:04:13]}  Ne4 {[%clk 0:01:19]}
70. d6 {[%clk 0:04:29]}  Nd2+ {[%clk 0:00:40]} 71. Kd5 {[%clk 0:03:28]} 1-0

[Event "2026 European Womens Championship"]
[Site "Batumi, GE"]
[Date "2026.06.02"]
[Round "8"]
[White "Iglesias, Yosha"]
[Black "Buksa, Nataliya"]
[Result "1/2-1/2"]
[Board "12"]
[TimeControl "5400+30"]
[WhiteFideId "637823"]
[BlackFideId "14123622"]
[WhiteElo "2325"]
[BlackElo "2392"]
[WhiteTitle "FM"]
[BlackTitle "IM"]
[WhiteClock "0:02:28"]
[BlackClock "0:00:59"]
[Variant "Standard"]

1. d4 {[%clk 1:30:57]}  d5 {[%clk 1:28:41]} 2. Bf4 {[%clk 1:31:20]}  Nf6 {[%clk 1:28:52]} 3. e3 {[%clk 1:31:43]}  c5 {[%clk 1:28:40]}
4. c3 {[%clk 1:29:43]}  Nc6 {[%clk 1:28:03]} 5. Nd2 {[%clk 1:29:59]}  Bg4 {[%clk 1:21:48]} 6. Qb3 {[%clk 1:23:09]}  Qc8 {[%clk 1:19:07]}
7. h3 {[%clk 1:18:26]}  c4 {[%clk 1:14:34]} 8. Qa4 {[%clk 1:18:35]}  b5 {[%clk 1:02:26]} 9. Qxb5 {[%clk 1:18:29]}  Bd7 {[%clk 1:02:54]}
10. Qa4 {[%clk 1:18:23]}  Nxd4 {[%clk 1:02:11]} 11. Qd1 {[%clk 1:18:39]}  Ne6 {[%clk 0:59:13]} 12. Be5 {[%clk 1:15:06]}  Nc5 {[%clk 0:58:06]}
13. b4 {[%clk 1:09:18]}  cxb3 {[%clk 0:57:13]} 14. axb3 {[%clk 1:09:30]}  e6 {[%clk 0:57:23]} 15. b4 {[%clk 1:05:50]}  Nce4 {[%clk 0:56:31]}
16. Ba6 {[%clk 1:03:48]}  Qc6 {[%clk 0:54:02]} 17. Ne2 {[%clk 1:03:55]}  Bd6 {[%clk 0:50:04]} 18. Nf3 {[%clk 0:50:05]}  O-O {[%clk 0:48:32]}
19. O-O {[%clk 0:45:22]}  Qb6 {[%clk 0:38:06]} 20. Ra5 {[%clk 0:43:12]}  Rfd8 {[%clk 0:20:54]} 21. Qd4 {[%clk 0:34:25]}  Bxe5 {[%clk 0:16:04]}
22. Nxe5 {[%clk 0:34:03]}  Nd6 {[%clk 0:16:31]} 23. Rfa1 {[%clk 0:30:46]}  Nf5 {[%clk 0:15:13]} 24. Qd3 {[%clk 0:27:06]}  Qc7 {[%clk 0:12:38]}
25. Nxd7 {[%clk 0:26:25]}  Qxd7 {[%clk 0:12:27]} 26. Bb5 {[%clk 0:25:41]}  Qc7 {[%clk 0:12:31]} 27. Nd4 {[%clk 0:25:28]}  Ne7 {[%clk 0:12:52]}
28. Ra6 {[%clk 0:23:38]}  Rd6 {[%clk 0:12:42]} 29. Rxd6 {[%clk 0:20:35]}  Qxd6 {[%clk 0:13:09]} 30. Ra6 {[%clk 0:21:00]}  Qc7 {[%clk 0:13:24]}
31. Bc6 {[%clk 0:20:35]}  Nxc6 {[%clk 0:09:30]} 32. Nxc6 {[%clk 0:20:06]}  h5 {[%clk 0:09:02]} 33. b5 {[%clk 0:16:44]}  Qb7 {[%clk 0:08:01]}
34. c4 {[%clk 0:14:42]}  Nd7 {[%clk 0:00:49]} 35. Qd4 {[%clk 0:14:05]}  Nb8 {[%clk 0:00:55]} 36. Nxb8 {[%clk 0:09:46]}  Qxb8 {[%clk 0:01:18]}
37. Ra1 {[%clk 0:07:33]}  dxc4 {[%clk 0:01:32]} 38. Qxc4 {[%clk 0:07:38]}  Qb7 {[%clk 0:01:05]} 39. Qc5 {[%clk 0:06:27]}  g6 {[%clk 0:01:31]}
40. Ra6 {[%clk 0:06:00]}  Rb8 {[%clk 0:00:59]} 41. Rxa7 {[%clk 0:02:28]} 1/2-1/2

[Event "2026 European Womens Championship"]
[Site "Batumi, GE"]
[Date "2026.06.02"]
[Round "8"]
[White "Danielian, Elina"]
[Black "Avramidou, Anastasia"]
[Result "1-0"]
[Board "13"]
[TimeControl "5400+30"]
[WhiteFideId "13300210"]
[BlackFideId "4239873"]
[WhiteElo "2390"]
[BlackElo "2320"]
[WhiteTitle "GM"]
[BlackTitle "FM"]
[WhiteClock "0:52:23"]
[BlackClock "0:28:22"]
[Variant "Standard"]

1. d4 {[%clk 1:30:57]}  Nf6 {[%clk 1:30:22]} 2. Nf3 {[%clk 1:31:22]}  g6 {[%clk 1:30:45]} 3. Bg5 {[%clk 1:31:27]}  Bg7 {[%clk 1:30:46]}
4. Nbd2 {[%clk 1:31:28]}  d5 {[%clk 1:28:26]} 5. e3 {[%clk 1:31:40]}  O-O {[%clk 1:27:12]} 6. c3 {[%clk 1:31:54]}  Nbd7 {[%clk 1:21:30]}
7. b4 {[%clk 1:31:55]}  Re8 {[%clk 1:19:06]} 8. Be2 {[%clk 1:30:04]}  e5 {[%clk 1:13:35]} 9. Nb3 {[%clk 1:29:44]}  h6 {[%clk 1:09:00]}
10. Bh4 {[%clk 1:29:27]}  Qe7 {[%clk 1:07:21]} 11. a3 {[%clk 1:28:34]}  c6 {[%clk 1:01:32]} 12. O-O {[%clk 1:22:28]}  g5 {[%clk 0:50:53]}
13. Bg3 {[%clk 1:22:53]}  Ne4 {[%clk 0:51:18]} 14. Qc2 {[%clk 1:21:24]}  Nxg3 {[%clk 0:41:10]} 15. hxg3 {[%clk 1:21:50]}  e4 {[%clk 0:41:32]}
16. Nfd2 {[%clk 1:22:11]}  Nf6 {[%clk 0:41:56]} 17. c4 {[%clk 1:21:35]}  Bg4 {[%clk 0:29:13]} 18. Bxg4 {[%clk 1:19:14]}  Nxg4 {[%clk 0:29:38]}
19. cxd5 {[%clk 1:19:19]}  cxd5 {[%clk 0:30:02]} 20. Rfc1 {[%clk 1:19:29]}  h5 {[%clk 0:24:33]} 21. Nf1 {[%clk 1:18:39]}  Rad8 {[%clk 0:21:21]}
22. Qe2 {[%clk 1:15:42]}  Rd6 {[%clk 0:18:23]} 23. Ra2 {[%clk 1:14:00]}  Red8 {[%clk 0:16:46]} 24. Rac2 {[%clk 1:11:04]}  b6 {[%clk 0:17:10]}
25. Rc6 {[%clk 1:01:34]}  R8d7 {[%clk 0:15:40]} 26. R1c2 {[%clk 0:58:33]}  Bf8 {[%clk 0:12:30]} 27. b5 {[%clk 0:44:38]}  Qe6 {[%clk 0:09:27]}
28. a4 {[%clk 0:44:16]}  f5 {[%clk 0:06:55]} 29. Nc1 {[%clk 0:44:09]}  h4 {[%clk 0:04:47]} 30. gxh4 {[%clk 0:42:11]}  gxh4 {[%clk 0:05:02]}
31. f3 {[%clk 0:42:29]}  Nf6 {[%clk 0:03:28]} 32. Qf2 {[%clk 0:42:09]}  Rh7 {[%clk 0:02:12]} 33. Ne2 {[%clk 0:37:43]}  exf3 {[%clk 0:02:11]}
34. Nf4 {[%clk 0:36:55]}  Qe8 {[%clk 0:01:28]} 35. Qxf3 {[%clk 0:36:32]}  Rhd7 {[%clk 0:01:19]} 36. Rc8 {[%clk 0:28:04]}  Rd8 {[%clk 0:01:16]}
37. Rxd8 {[%clk 0:27:53]}  Rxd8 {[%clk 0:00:53]} 38. Rc6 {[%clk 0:27:17]}  Ne4 {[%clk 0:00:35]} 39. Rg6+ {[%clk 0:23:50]}  Bg7 {[%clk 0:00:34]}
40. Qh5 {[%clk 0:24:13]}  Nf6 {[%clk 0:00:32]} 41. Qg5 {[%clk 0:23:11]}  Qf7 {[%clk 0:28:22]} 42. Rxg7+ {[%clk 0:52:23]} 1-0